fUSD/lending_fUSD_20251118
["ID","MTS","AMOUNT","RATE_DAILY","PERIOD"]
[394329689,1763457058683,-416.87,0.00029438,2]
[394329690,1763457058692,-416.87,0.00029438,2]
[394329691,1763457058701,-416.87,0.00029438,2]
[394329692,1763457058710,-416.87,0.00029438,2]
[394329693,1763457058721,-1273.47,0.00029449,2]
[394329694,1763457058730,-150.0,0.00029464,2]
[394329695,1763457058739,-150.0,0.00029464,2]
[394329696,1763457058749,-301.76,0.00029464,2]
[394329697,1763457058758,-2576.85,0.000297,2]
[394329698,1763457058768,-1000.0,0.0003,9]
[394329699,1763457058778,-1000.0,0.0003,9]
[394329700,1763457058788,-1000.0,0.0003,9]
[394329701,1763457058799,-1000.0,0.0003,9]
[394329702,1763457058809,-207.57,0.00030137,2]
[394329703,1763457058819,-416.87,0.0003026,2]
[394329704,1763457058828,-416.87,0.0003026,2]
[394329705,1763457058838,-416.87,0.0003026,2]
[394329706,1763457058852,-416.87,0.0003026,2]
[394329707,1763457058861,-416.87,0.0003026,2]
[394329708,1763457058871,-416.87,0.0003026,2]
[394329709,1763457058880,-416.87,0.0003026,2]
[394329710,1763457058891,-416.87,0.0003026,2]
[394329711,1763457058900,-416.87,0.0003026,2]
[394329712,1763457058910,-416.87,0.0003026,2]
[394329713,1763457058920,-416.87,0.0003026,2]
[394329714,1763457058929,-416.87,0.0003026,2]
[394329715,1763457058939,-416.87,0.0003026,2]
[394329716,1763457058948,-416.87,0.0003026,2]
[394329717,1763457058958,-416.87,0.0003026,2]
[394329718,1763457058967,-416.87,0.0003026,2]
[394329719,1763457058978,-416.87,0.0003026,2]
[394329720,1763457058987,-416.87,0.0003026,2]
[394329721,1763457058996,-416.87,0.0003026,2]
[394329722,1763457059005,-339.11,0.0003026,2]
[394329723,1763457059014,-855.0,0.00030602,2]
[394329724,1763457059024,-575.0,0.00030682,2]
[394329725,1763457059033,-609.0,0.00030682,2]
[394329726,1763457059043,-151.32,0.00031014,2]
[394329727,1763457059052,-843.666,0.00031089,2]
[394329728,1763457059061,-338.9,0.0003109,2]
[394329729,1763457059071,-459.951,0.00031172,2]
[394329730,1763457059080,-1599.0,0.00031172,2]
[394329731,1763457059090,-1604.0,0.00031177,2]
[394329732,1763457059099,-191.59,0.00031507,120]
[394329733,1763457059108,-10946.59,0.000318,7]
[394329734,1763457059118,-2000.0,0.000318,2]
[394329735,1763457059127,-216.63,0.00031859,30]
[394329736,1763457059137,-199975.39297318,0.00032,120]
[394329737,1763457059146,-5216.0191865,0.00032,120]
[394329738,1763457059155,-479.30025826,0.00032,120]
[394329739,1763457059164,-26568.86898215,0.00032109,14]
[394329740,1763457059174,-171.0,0.0003263,2]
[394329741,1763457059183,-340.5,0.0003263,2]
[394329742,1763457059193,-300.5,0.0003263,2]
[394329743,1763457059202,-372.04,0.0003263,2]
[394329744,1763457059212,-340.77,0.00032877,2]
[394329745,1763457059221,-151.0,0.00032877,31]
[394329746,1763457059231,-151.0,0.00032877,31]
[394329747,1763457059241,-151.0,0.00032877,31]
[394329748,1763457059251,-151.0,0.00032877,31]
[394329749,1763457059260,-151.0,0.00032877,31]
[394329750,1763457059271,-151.0,0.00032877,31]
[394329751,1763457059280,-151.0,0.00032877,31]
[394329752,1763457059289,-168.568917,0.00032877,31]
[394329753,1763457059298,-151.0,0.00032877,31]
[394329754,1763457059308,-151.0,0.00032877,31]
[394329755,1763457059318,-151.0,0.00032877,31]
[394329756,1763457059328,-151.0,0.00032877,31]
[394329757,1763457059337,-172.987455,0.00032877,31]
[394329758,1763457059347,-207.57,0.00032877,2]
[394329759,1763457059357,-500.0,0.00032877,7]
[394329760,1763457059368,-500.0,0.00032877,7]
[394329761,1763457059378,-427.00492286,0.00032877,7]
[394329762,1763457059387,-1000.0,0.00033,13]
[394329763,1763457059397,-479.30025826,0.00033,120]
[394329764,1763457059407,-2576.85,0.00033,2]
[394329765,1763457059418,-488.0,0.0003315,7]
[394329766,1763457059430,-843.4,0.00033165,2]
[394329767,1763457059442,-162.90909298,0.0003324,2]
[394329768,1763457059451,-177.39,0.00033245,2]
[394329769,1763457059461,-177.39,0.00033245,2]
[394329770,1763457059470,-177.39,0.00033245,2]
[394329771,1763457059481,-177.39,0.00033245,2]
[394329772,1763457059492,-177.39,0.00033245,2]
[394329773,1763457059501,-438.49567533,0.00033357,2]
[394329774,1763457059511,-177.39,0.00033548,2]
[394329775,1763457059521,-177.39,0.00033548,2]
[394329776,1763457059530,-177.39,0.00033548,2]
[394329777,1763457059539,-190.34,0.00033574,2]
[394329778,1763457059548,-177.39,0.00033574,2]
[394329779,1763457059556,-177.39,0.00033574,2]
[394329780,1763457059566,-177.39,0.00033574,2]
[394329781,1763457059575,-177.39,0.00033574,2]
[394329782,1763457059583,-177.39,0.00033574,2]
[394329783,1763457059592,-177.39,0.00033574,2]
[394329784,1763457059601,-177.39,0.00033574,2]
[394329785,1763457059611,-177.39,0.00033574,2]
[394329786,1763457059622,-177.39,0.00033574,2]
[394329787,1763457059631,-177.39,0.00033574,2]
[394329788,1763457059640,-177.39,0.00033574,2]
[394329789,1763457059648,-177.39,0.00033574,2]
[394329790,1763457059657,-177.39,0.00033574,2]
[394329791,1763457059666,-177.39,0.00033574,2]
[394329792,1763457059675,-177.39,0.00033574,2]
[394329793,1763457059685,-177.39,0.00033574,2]
[394329794,1763457059694,-177.39,0.00033574,2]
[394329795,1763457059704,-177.39,0.00033574,2]
[394329796,1763457059713,-177.39,0.00033574,2]
[394329797,1763457059722,-177.39,0.00033574,2]
[394329798,1763457059731,-177.39,0.00033574,2]
[394329799,1763457059740,-177.39,0.00033574,2]
[394329800,1763457059749,-177.39,0.00033574,2]
[394329801,1763457059759,-495.278,0.00033682,2]
[394329802,1763457059768,-488.0,0.00033972,8]
[394329803,1763457059777,-1625.0,0.000341,3]
[394329804,1763457059786,-1604.0,0.00034177,2]
[394329805,1763457059795,-605.18,0.00034319,30]
[394329806,1763457059804,-216.63,0.00034323,30]
[394329807,1763457059813,-284.62,0.0003437,2]
[394329808,1763457059823,-79.23157286,0.0003437,2]
[394329809,1763457059836,-98.15842714,0.0003437,2]
[394329810,1763457059849,-177.39,0.0003437,2]
[394329811,1763457059860,-177.39,0.0003437,2]
[394329812,1763457059874,-177.39,0.0003437,2]
[394329813,1763457059885,-177.32,0.00034377,2]
[394329814,1763457059895,-152.0,0.00034396,3]
[394329815,1763457059905,-2041.45132727,0.000345,14]
[394329816,1763457059916,-2233.64636406,0.000345,14]
[394329817,1763457060007,-151.0,0.00017206,2]
[394329818,1763457060016,-151.0,0.00024658,7]
[394329819,1763457060027,-151.0,0.00024658,7]
[394329820,1763457060036,-520.31356999,0.00024658,7]
[394329821,1763457173575,3638.28,0.00015729,2]
[394329822,1763457189254,50000.0,0.00041717,34]
[394329823,1763457197035,500.0,0.00041717,30]
[394329824,1763457197929,50000.0,0.00041717,35]
[394329825,1763457218933,500.0,0.00041717,30]
[394329826,1763457243867,500.0,0.00041717,30]
[394329827,1763457256583,500.0,0.00041717,30]
[394329828,1763457296747,500.0,0.00041717,30]
[394329830,1763457451380,716.89,0.00013699,2]
[394329831,1763457453038,276.33980095,0.00041717,30]
[394329833,1763457512732,2908.49,0.00015972,2]
[394329834,1763457559791,1000.0,0.0003,120]
[394329837,1763457637369,150.0,0.00015925,2]
[394329838,1763457687081,166.66,0.00015063,2]
[394329839,1763457687274,166.66,0.0001538,2]
[394329840,1763457687479,166.66,0.00015697,2]
[394329841,1763457687690,166.66,0.00016014,2]
[394329842,1763457687909,166.66,0.00016332,2]
[394329843,1763457715639,3173.94,0.00015835,2]
[394329844,1763457716479,250.0,0.00015835,2]
[394329846,1763457745108,514.41,0.00019178,30]
[394329848,1763457911135,1534.4,0.00015819,2]
[394329850,1763457946748,200.0,0.00015815,2]
[394329851,1763457960933,8265.61,8e-05,2]
[394329852,1763457960956,1734.4,8e-05,2]
[394329854,1763457966119,559.28234128,0.00041705,30]
[394329856,1763458013276,1000.0,0.00015848,2]
[394329857,1763458014501,5000.00409687,0.000162,5]
[394329861,1763458043298,307.505176,8e-05,2]
[394329862,1763458048273,520.9,0.00041705,30]
[394329863,1763458062776,160.0,0.0003,120]
[394329864,1763458063600,84999.999999,0.00041705,30]
[394329865,1763458074688,160.0,0.0003,120]
[394329866,1763458089876,520.83,0.00041705,30]
[394329867,1763458097943,1918.34535016,0.0001,2]
[394329868,1763458106095,520.83,0.00041705,30]
[394329869,1763458109400,2716.28048877,0.0001,2]
[394329870,1763458119865,5057.87898507,0.0001,2]
[394329871,1763458119888,3103.1310329,0.0001,2]
[394329872,1763458120419,4306.78194016,0.00015,2]
[394329873,1763458121281,520.83,0.00041705,30]
[394329874,1763458122913,2590.09702694,0.00013699,2]
[394329875,1763458122935,367.01463882,0.00013699,2]
[394329878,1763458151550,610.0,0.00015801,2]
[394329880,1763458220745,160.0,0.000164,2]
[394329881,1763458221799,160.0,0.000164,2]
[394329882,1763458225604,200.0,0.00015851,2]
[394329897,1763458231470,-571368.86102478,0.0001661,2]
[394329898,1763458231481,-13560.51651148,0.0001661,2]
[394329899,1763458231496,-106219.22016267,0.0001661,2]
[394329900,1763458231507,-68851.40230107,0.0001661,2]
[394329901,1763458231515,-280.3589,0.00016611,2]
[394329903,1763458231524,-1000.0,0.00016611,2]
[394329905,1763458231533,-195.0,0.00016612,2]
[394329907,1763458231542,-300.0,0.00016613,2]
[394329909,1763458231551,-300.0,0.00016615,2]
[394329910,1763458231560,-1200.0,0.00016615,2]
[394329911,1763458231570,-300.0,0.00016615,2]
[394329912,1763458231579,-300.0,0.00016616,2]
[394329913,1763458231588,-2500.0,0.00016616,2]
[394329914,1763458231597,-250.0,0.00016616,2]
[394329915,1763458231605,-195.0,0.00016621,2]
[394329916,1763458231614,-300.0,0.0001663,2]
[394329917,1763458231623,-300.0,0.0001663,2]
[394329918,1763458231632,-300.0,0.0001663,2]
[394329919,1763458231641,-250.0,0.0001663,2]
[394329920,1763458231650,-150.07045677,0.00016631,2]
[394329921,1763458231659,-195.0,0.00016639,2]
[394329922,1763458231668,-166.66,0.00016649,2]
[394329923,1763458231677,-185.60066175,0.00016673,2]
[394329924,1763458231686,-493.70043502,0.00016673,2]
[394329925,1763458231697,-150.0,0.00016677,2]
[394329926,1763458231706,-493.70043498,0.00016702,2]
[394329927,1763458231715,-372.0,0.00016702,2]
[394329928,1763458231725,-550.0,0.00016709,2]
[394329929,1763458231734,-521.96437443,0.0001671,2]
[394329930,1763458231744,-4224.332,0.0001671,2]
[394329931,1763458231753,-1258.13,0.0001671,2]
[394329932,1763458231761,-500.0,0.0001671,2]
[394329933,1763458231770,-500.0,0.0001671,2]
[394329934,1763458231779,-448.79605126,0.0001671,2]
[394329935,1763458231788,-458.52941409,0.0001671,2]
[394329937,1763458231797,-500.0,0.0001671,2]
[394329939,1763458231807,-500.0,0.0001671,2]
[394329941,1763458231816,-265.48616178,0.0001671,2]
[394329943,1763458231825,-504.58104435,0.0001671,2]
[394329945,1763458231834,-500.0,0.0001671,2]
[394329947,1763458231843,-500.0,0.0001671,2]
[394329949,1763458231852,-500.0,0.0001671,2]
[394329951,1763458231861,-500.0,0.0001671,2]
[394329952,1763458231870,-500.0,0.0001671,2]
[394329953,1763458231879,-500.0,0.0001671,2]
[394329954,1763458231888,-500.0,0.0001671,2]
[394329955,1763458231897,-500.0,0.0001671,2]
[394329957,1763458231906,-500.0,0.0001671,2]
[394329959,1763458231915,-500.0,0.0001671,2]
[394329960,1763458231925,-500.0,0.0001671,2]
[394329961,1763458231934,-500.0,0.0001671,2]
[394329962,1763458231943,-500.0,0.0001671,2]
[394329963,1763458231952,-500.0,0.0001671,2]
[394329964,1763458231961,-500.0,0.0001671,2]
[394329965,1763458231970,-500.0,0.0001671,2]
[394329966,1763458231978,-500.0,0.0001671,2]
[394329967,1763458231987,-500.0,0.0001671,2]
[394329968,1763458231996,-500.0,0.0001671,2]
[394329969,1763458232006,-500.0,0.0001671,2]
[394329970,1763458232015,-500.0,0.0001671,2]
[394329971,1763458232024,-500.0,0.0001671,2]
[394329972,1763458232034,-500.0,0.0001671,2]
[394329973,1763458232043,-500.0,0.0001671,2]
[394329974,1763458232052,-500.0,0.0001671,2]
[394329975,1763458232062,-500.0,0.0001671,2]
[394329976,1763458232071,-500.0,0.0001671,2]
[394329977,1763458232080,-500.0,0.0001671,2]
[394329978,1763458232089,-500.0,0.0001671,2]
[394329979,1763458232099,-500.0,0.0001671,2]
[394329980,1763458232108,-500.0,0.0001671,2]
[394329981,1763458232118,-500.0,0.0001671,2]
[394329982,1763458232127,-500.0,0.0001671,2]
[394329983,1763458232137,-500.0,0.0001671,2]
[394329984,1763458232146,-500.0,0.0001671,2]
[394329985,1763458232156,-500.0,0.0001671,2]
[394329986,1763458232166,-500.0,0.0001671,2]
[394329987,1763458232175,-500.0,0.0001671,2]
[394329988,1763458232185,-500.0,0.0001671,2]
[394329989,1763458232194,-500.0,0.0001671,2]
[394329990,1763458232203,-500.0,0.0001671,2]
[394329991,1763458232212,-500.0,0.0001671,2]
[394329992,1763458232221,-500.0,0.0001671,2]
[394329993,1763458232232,-500.0,0.0001671,2]
[394329994,1763458232242,-500.0,0.0001671,2]
[394329995,1763458232251,-500.0,0.0001671,2]
[394329996,1763458232261,-500.0,0.0001671,2]
[394329997,1763458232271,-500.0,0.0001671,2]
[394329998,1763458232281,-500.0,0.0001671,2]
[394329999,1763458232290,-500.0,0.0001671,2]
[394330000,1763458232299,-500.0,0.0001671,2]
[394330001,1763458232309,-500.0,0.0001671,2]
[394330002,1763458232318,-500.0,0.0001671,2]
[394330003,1763458232327,-500.0,0.0001671,2]
[394330004,1763458232336,-500.0,0.0001671,2]
[394330005,1763458232345,-500.0,0.0001671,2]
[394330006,1763458232355,-363.79236535,0.0001671,2]
[394330007,1763458232364,-500.0,0.0001671,2]
[394330008,1763458232373,-493.70043498,0.00016731,2]
[394330009,1763458232383,-493.70043498,0.0001676,2]
[394330010,1763458232393,-500.0,0.00016773,2]
[394330011,1763458232403,-500.0,0.00016773,2]
[394330012,1763458232413,-500.0,0.00016773,2]
[394330013,1763458232423,-363.04348691,0.00016773,2]
[394330014,1763458232432,-500.0,0.00016773,2]
[394330015,1763458232441,-500.0,0.00016773,2]
[394330016,1763458232449,-500.0,0.00016773,2]
[394330017,1763458232459,-500.0,0.00016773,2]
[394330018,1763458232468,-500.0,0.00016773,2]
[394330019,1763458232477,-162.26120366,0.00016773,2]
[394330020,1763458232486,-500.0,0.00016773,2]
[394330021,1763458232495,-500.0,0.00016773,2]
[394330022,1763458232504,-500.0,0.00016773,2]
[394330023,1763458232513,-500.0,0.00016773,2]
[394330024,1763458232523,-503.20529526,0.00016773,2]
[394330025,1763458232532,-493.70043498,0.00016789,2]
[394330026,1763458232541,-15887.8818,0.00016798,2]
[394330027,1763458232550,-1000.0,0.00016798,2]
[394330028,1763458232559,-493.70043498,0.00016818,2]
[394330029,1763458232569,-493.70043498,0.00016847,2]
[394330030,1763458232578,-223.64468148,0.00016858,2]
[394330031,1763458232587,-493.70043498,0.00016876,2]
[394330032,1763458232596,-372.0,0.00016897,2]
[394330033,1763458232605,-506.97795181,0.00016899,2]
[394330034,1763458232614,-362.22986799,0.00016899,2]
[394330035,1763458232623,-556.04174665,0.00016899,2]
[394330036,1763458232632,-500.0,0.00016899,2]
[394330037,1763458232641,-150.0,0.00016899,2]
[394330038,1763458232650,-150.0,0.00016899,2]
[394330039,1763458232659,-500.0,0.00016899,2]
[394330040,1763458232668,-150.0,0.00016899,2]
[394330041,1763458232677,-150.0,0.00016899,2]
[394330042,1763458232686,-150.0,0.00016899,2]
[394330043,1763458232695,-150.0,0.00016899,2]
[394330044,1763458232705,-213.57895725,0.00016899,2]
[394330045,1763458232715,-500.0,0.00016899,2]
[394330046,1763458232724,-159.86537394,0.000169,2]
[394330047,1763458232733,-1313.10330762,0.000169,2]
[394330048,1763458232742,-150.07045676,0.000169,2]
[394330049,1763458232752,-315.48972356,0.000169,2]
[394330050,1763458232761,-382.03480007,0.00016905,2]
[394330051,1763458232772,-493.70043498,0.00016905,2]
[394330052,1763458232781,-165.69252863,0.00016934,2]
[394330053,1763458232791,-493.70043498,0.00016934,2]
[394330054,1763458232802,-226.74427698,0.00016973,2]
[394330055,1763458232813,-500.0,0.00016973,2]
[394330056,1763458232822,-502.10718948,0.00016973,2]
[394330057,1763458232831,-228.77234087,0.00016973,2]
[394330058,1763458232839,-500.0,0.00016973,2]
[394330059,1763458232849,-500.49832064,0.00016973,2]
[394330060,1763458232857,-507.23583524,0.00016973,2]
[394330061,1763458232867,-297.28368691,0.00016973,2]
[394330062,1763458233056,-151.52945777,0.00016973,2]
[394330063,1763458233066,-151.0,0.00016977,2]
[394330064,1763458233075,-151.0,0.00016978,2]
[394330065,1763458233084,-151.0,0.00016979,2]
[394330066,1763458233093,-151.0,0.0001698,2]
[394330067,1763458233102,-1258.13,0.00016984,2]
[394330068,1763458233112,-16928.25860939,0.00016986,2]
[394330069,1763458233141,-6741.34499928,0.00016986,2]
[394330072,1763458237392,-208.24937051,0.00016511,2]
[394330074,1763458237401,-602.77448665,0.00016609,2]
[394330075,1763458237410,-500.0,0.00016609,2]
[394330076,1763458237419,-227.05161235,0.00016609,2]
[394330077,1763458237500,-272.94838765,0.00016609,2]
[394330078,1763458237510,-500.0,0.00016609,2]
[394330079,1763458237519,-500.0,0.00016609,2]
[394330080,1763458237528,-151.0,0.00016978,2]
[394330081,1763458237537,-481.80730703,0.00016986,2]
[394330082,1763458237676,-208.59176968,0.00016609,2]
[394330083,1763458237686,-1988.52139804,0.00016986,2]
[394330085,1763458239562,-875.95399253,0.00016986,2]
[394330086,1763458239617,-16126.83369373,0.00016986,2]
[394330087,1763458239627,-186.9559386,0.0001699,2]
[394330088,1763458239635,-372.0,0.00016994,2]
[394330089,1763458239644,-300.0,0.00016999,2]
[394330090,1763458239653,-300.0,0.00016999,2]
[394330091,1763458239663,-2923150.96388597,0.00017,2]
[394330092,1763458239674,-9164.15,0.00017,2]
[394330093,1763458239684,-4089.60882279,0.00017,2]
[394330094,1763458239727,-427.84407275,0.00017,2]
[394330095,1763458239737,-764.90191143,0.00017,2]
[394330096,1763458239749,-458.395,0.00017,2]
[394330097,1763458239782,-933.64489063,0.00017,2]
[394330109,1763458242673,-4024.8295,0.00017,2]
[394330110,1763458242781,-500.0,0.00017,2]
[394330112,1763458271348,4897.81511709,0.00016,2]
[394330113,1763458271482,322.0,0.00041703,30]
[394330114,1763458292680,3605.18024409,0.00016182,2]
[394330115,1763458292702,10000.01,0.00016182,2]
[394330116,1763458292723,2598.31975591,0.00016182,2]
[394330117,1763458315970,160.0,0.0003,120]
[394330118,1763458330120,302.0,0.00041703,30]
[394330119,1763458335589,2455.68,0.00016178,2]
[394330120,1763458355913,160.0,0.000164,2]
[394330121,1763458359835,-300.0,0.00016608,2]
[394330122,1763458359864,-250.0,0.00016609,2]
[394330123,1763458359894,-500.0,0.00016609,2]
[394330124,1763458359923,-500.0,0.00016609,2]
[394330125,1763458359953,-500.0,0.00016609,2]
[394330126,1763458359986,-500.0,0.00016609,2]
[394330127,1763458360018,-500.0,0.00016609,2]
[394330128,1763458360049,-443.28342701,0.00016609,2]
[394330129,1763458360078,-500.0,0.00016609,2]
[394330130,1763458360110,-335.2548349,0.00016609,2]
[394330131,1763458360146,-500.0,0.00016609,2]
[394330132,1763458388984,4979.67,8.242e-05,2]
[394330133,1763458389199,4979.67,8.676e-05,2]
[394330134,1763458389397,40.67,9.11e-05,2]
[394330135,1763458389426,4939.0,9.11e-05,2]
[394330136,1763458389645,4979.67,9.543e-05,2]
[394330137,1763458389843,81.34,9.977e-05,2]
[394330138,1763458389871,4898.33,9.977e-05,2]
[394330139,1763458390034,4979.67,0.00010411,2]
[394330140,1763458390323,122.01,0.00010845,2]
[394330141,1763458390352,4857.66,0.00010845,2]
[394330142,1763458390533,4979.67,0.00011279,2]
[394330143,1763458390730,162.68,0.00011712,2]
[394330144,1763458390759,4816.99,0.00011712,2]
[394330145,1763458390929,4979.67,0.00012146,2]
[394330146,1763458391150,203.35,0.0001258,2]
[394330147,1763458391178,4776.32,0.0001258,2]
[394330148,1763458391358,4979.67,0.00013014,2]
[394330149,1763458391573,244.02,0.00013447,2]
[394330150,1763458391602,4735.65,0.00013447,2]
[394330151,1763458391763,4979.67,0.00013881,2]
[394330152,1763458391992,284.69,0.00014315,2]
[394330153,1763458392023,4694.98,0.00014315,2]
[394330154,1763458392125,302.0,0.00041703,30]
[394330155,1763458392216,4979.67,0.00014749,2]
[394330156,1763458392399,325.36,0.00015183,2]
[394330157,1763458392430,4654.31,0.00015183,2]
[394330158,1763458392593,4979.67,0.00015616,2]
[394330159,1763458393370,366.03,0.0001605,2]
[394330160,1763458393399,4613.64,0.0001605,2]
[394330161,1763458415265,300.0,0.000167,6]
[394330162,1763458417353,600.0,0.000168,6]
[394330163,1763458419607,900.0,0.000169,6]
[394330164,1763458422110,280.26,0.00016136,2]
[394330165,1763458424292,-4979.67,0.00016484,2]
[394330166,1763458425117,40.67,0.00016123,2]
[394330167,1763458425139,7100.22,0.00016123,2]
[394330168,1763458448487,151.0,0.00041703,30]
[394330169,1763458493294,500.0,0.00016508,2]
[394330171,1763458513229,302.0,0.00041704,30]
[394330172,1763458522441,160.0,0.000166,2]
[394330173,1763458523107,160.0,0.000166,2]
[394330174,1763458523647,160.0,0.000166,2]
[394330175,1763458544736,160.0,0.000166,2]
[394330176,1763458549406,160.0,0.000166,2]
[394330177,1763458565482,302.0,0.00041704,30]
[394330180,1763458633157,302.0,0.00041704,30]
[394330181,1763458644648,10000.01,0.00016062,2]
[394330182,1763458644670,10000.01,0.00016062,2]
[394330183,1763458644691,2923.74,0.00016062,2]
[394330184,1763458653099,7076.27,0.00016062,2]
[394330185,1763458653122,8980.0,0.00016062,2]
[394330187,1763458701200,10000.01,0.00016195,2]
[394330188,1763458701222,810.77,0.00016195,2]
[394330189,1763458723089,8887.35,0.00016066,2]
[394330190,1763458750763,604.0,0.00041704,30]
[394330191,1763458809629,151.0,0.00041683,30]
[394330192,1763458810593,526.10672888,0.00041683,30]
[394330194,1763458867425,500.0,0.00041683,30]
[394330195,1763458901880,416.6,0.00041683,30]
[394330196,1763458926934,500.0,0.00041683,30]
[394330197,1763458928597,500.0,0.00041683,30]
[394330198,1763458940221,302.0,0.00041683,30]
[394330199,1763458948407,557027.6,0.00041683,90]
[394330200,1763458950236,500.0,0.00041683,30]
[394330201,1763458984671,500.0,0.00041683,30]
[394330202,1763458988400,500.0,0.00041683,90]
[394330203,1763459012218,500.0,0.00041683,30]
[394330204,1763459032557,166.66,0.00016541,2]
[394330205,1763459045461,500.0,0.00041683,90]
[394330206,1763459046081,500.0,0.00041683,90]
[394330207,1763459061469,500.0,0.00041683,30]
[394330208,1763459104490,150.0,0.000162,2]
[394330209,1763459107940,150.0,0.000162,2]
[394330210,1763459108156,150.0,0.000162,2]
[394330212,1763459112161,500.0,0.00041683,90]
[394330213,1763459112478,150.0,0.000162,2]
[394330214,1763459112787,150.0,0.000162,2]
[394330215,1763459112836,500.0,0.00041683,90]
[394330216,1763459115171,150.0,0.000162,2]
[394330217,1763459115223,150.0,0.000162,2]
[394330218,1763459119711,150.0,0.000162,2]
[394330219,1763459128939,150.0,0.000162,2]
[394330220,1763459129298,150.0,0.000162,2]
[394330221,1763459165725,500.0,0.00041683,90]
[394330222,1763459166364,500.0,0.00041683,90]
[394330223,1763459186621,-300.0,0.00016617,2]
[394330224,1763459186643,-300.0,0.00016617,2]
[394330225,1763459186663,-303.0,0.00016617,2]
[394330226,1763459186696,-1200.0,0.00016709,2]
[394330227,1763459186718,-300.0,0.00016709,2]
[394330228,1763459186740,-510.88641036,0.0001671,2]
[394330229,1763459186760,-580.77374724,0.0001671,2]
[394330230,1763459186780,-500.0,0.0001671,2]
[394330231,1763459186801,-289.28844386,0.0001671,2]
[394330232,1763459186823,-500.0,0.0001671,2]
[394330233,1763459186843,-500.0,0.0001671,2]
[394330234,1763459186866,-1516.05139854,0.000168,2]
[394330239,1763459225542,500.0,0.00041683,90]
[394330241,1763459295047,4410.7,0.00016438,2]
[394330242,1763459341854,500.0,0.00029999,120]
[394330243,1763459381282,563.71,0.00016078,2]
[394330245,1763459426184,798.0,0.00016438,2]
[394330252,1763459431604,-1832.31335724,0.000167,2]
[394330253,1763459431614,-300.0,0.00016779,2]
[394330254,1763459431623,-300.0,0.00016789,2]
[394330255,1763459431637,-300.0,0.00016799,2]
[394330256,1763459431646,-300.0,0.00016799,2]
[394330258,1763459431655,-1200.0,0.00016799,2]
[394330259,1763459431665,-1774.86555896,0.000168,2]
[394330260,1763459431676,-1000.0,0.000168,2]
[394330261,1763459431686,-2500.0,0.000168,2]
[394330262,1763459431696,-40797.99031198,0.000168,2]
[394330263,1763459431709,-13738.46616348,0.000168,2]
[394330281,1763459437574,-474.71000045,0.00016799,2]
[394330284,1763459437628,-25.28999955,0.00016799,2]
[394330285,1763459437642,-421.94214065,0.00016799,2]